[Event "Late-Titled-Tuesday-Blitz-February-27-2024"]
[Site "Chess.com"]
[Date "2024.02.27"]
[Round "3"]
[White "Caisachess"]
[Black "subham777"]
[Result "1-0"]
[WhiteElo "2358"]
[BlackElo "2533"]
[TimeControl "180+1"]
[EndTime "14:26:56 PST"]
[Termination "Caisachess won by resignation"]

1. e4 {[%clk 0:03:00.9]} 1... e6 {[%clk 0:02:59.6]} 2. d4 {[%clk 0:03:00.6]}
2... d5 {[%clk 0:02:58.7]} 3. Bd3 {[%clk 0:03:01.3]} 3... c5 {[%clk 0:02:57.8]}
4. exd5 {[%clk 0:03:01.2]} 4... Qxd5 {[%clk 0:02:57.6]} 5. Nc3 {[%clk
0:02:59.3]} 5... Qxd4 {[%clk 0:02:50.9]} 6. Nb5 {[%clk 0:02:59.2]} 6... Qd8
{[%clk 0:02:48]} 7. Bf4 {[%clk 0:02:59.6]} 7... Na6 {[%clk 0:02:46.4]} 8. Qf3
{[%clk 0:03:00.2]} 8... Nf6 {[%clk 0:02:35.6]} 9. O-O-O {[%clk 0:02:58.8]} 9...
Bd7 {[%clk 0:02:23.1]} 10. Qxb7 {[%clk 0:02:54.1]} 10... Qc8 {[%clk 0:02:09.6]}
11. Qxa6 {[%clk 0:02:47.5]} 11... c4 {[%clk 0:01:56.5]} 12. Bxc4 {[%clk
0:02:40.1]} 12... Qc5 {[%clk 0:01:31.3]} 13. Nc7+ {[%clk 0:02:27.4]} 13... Kd8
{[%clk 0:01:29.2]} 14. Nxa8 {[%clk 0:02:19.7]} 14... Qxf2 {[%clk 0:01:28.7]} 15.
Ne2 {[%clk 0:02:00.2]} 15... Bc5 {[%clk 0:01:22.2]} 16. Qa5+ {[%clk 0:01:57.5]}
16... Ke7 {[%clk 0:01:16.4]} 17. Nc7 {[%clk 0:01:49.5]} 17... Bb6 {[%clk
0:01:05.6]} 18. Qa3+ {[%clk 0:01:46.1]} 18... Bc5 {[%clk 0:01:04.2]} 19. Bd6+
{[%clk 0:01:42.6]} 19... Bxd6 {[%clk 0:00:56.2]} 20. Qxd6+ {[%clk 0:01:41.9]}
20... Kd8 {[%clk 0:00:47.9]} 21. Bb5 {[%clk 0:01:39.2]} 21... Qb6 {[%clk
0:00:39.6]} 22. Qxb6 {[%clk 0:01:34.5]} 22... axb6 {[%clk 0:00:40.5]} 23. Bxd7
{[%clk 0:01:30.3]} 23... Kxc7 {[%clk 0:00:40.8]} 24. Bb5 {[%clk 0:01:30.2]}
24... Ra8 {[%clk 0:00:40.7]} 25. a4 {[%clk 0:01:29.6]} 25... Nd5 {[%clk
0:00:39.3]} 26. Nc3 {[%clk 0:01:26.7]} 26... Ne3 {[%clk 0:00:36.6]} 27. Rd7+
{[%clk 0:01:22.8]} 27... Kc8 {[%clk 0:00:36.5]} 28. Rxf7 {[%clk 0:01:22.7]} 1-0

[Event "Late-Titled-Tuesday-Blitz-February-27-2024"]
[Site "Chess.com"]
[Date "2024.02.27"]
[Round "3"]
[White "temus_galaktionov"]
[Black "NMJeevanK"]
[Result "1-0"]
[WhiteElo "2913"]
[BlackElo "2605"]
[TimeControl "180+1"]
[EndTime "14:27:03 PST"]
[Termination "temus_galaktionov won by resignation"]

1. d4 {[%clk 0:03:00.9]} 1... d6 {[%clk 0:02:53.7]} 2. Nf3 {[%clk 0:02:59.8]}
2... g6 {[%clk 0:02:53.3]} 3. c4 {[%clk 0:03:00.3]} 3... Bg7 {[%clk 0:02:53.4]}
4. Nc3 {[%clk 0:03:00]} 4... Nc6 {[%clk 0:02:53.8]} 5. d5 {[%clk 0:02:59.7]}
5... Ne5 {[%clk 0:02:54.1]} 6. Nxe5 {[%clk 0:02:58.5]} 6... Bxe5 {[%clk
0:02:55]} 7. f4 {[%clk 0:02:59]} 7... Bxc3+ {[%clk 0:02:51.6]} 8. bxc3 {[%clk
0:02:59.9]} 8... Nf6 {[%clk 0:02:51.4]} 9. h3 {[%clk 0:02:56.7]} 9... c6 {[%clk
0:02:47.9]} 10. g4 {[%clk 0:02:55]} 10... cxd5 {[%clk 0:02:39.6]} 11. cxd5
{[%clk 0:02:55.9]} 11... Qa5 {[%clk 0:02:39.1]} 12. Bg2 {[%clk 0:02:56.3]} 12...
Qxc3+ {[%clk 0:02:38.4]} 13. Bd2 {[%clk 0:02:56.3]} 13... Qg3+ {[%clk
0:02:36.2]} 14. Kf1 {[%clk 0:02:56.2]} 14... Bd7 {[%clk 0:02:16.9]} 15. Rb1
{[%clk 0:02:55.4]} 15... b6 {[%clk 0:02:11.3]} 16. Rb3 {[%clk 0:02:54.6]} 16...
Qh4 {[%clk 0:02:03.6]} 17. Be1 {[%clk 0:02:52.6]} 17... Qh6 {[%clk 0:02:02.5]}
18. g5 {[%clk 0:02:53]} 18... Qg7 {[%clk 0:01:58]} 19. gxf6 {[%clk 0:02:52.1]}
19... Qxf6 {[%clk 0:01:58.9]} 20. Rf3 {[%clk 0:02:50.5]} 20... O-O {[%clk
0:01:56.8]} 21. Bc3 {[%clk 0:02:50.2]} 21... Qh4 {[%clk 0:01:47.5]} 22. Qd4
{[%clk 0:02:47.6]} 22... f6 {[%clk 0:01:46.4]} 23. Qf2 {[%clk 0:02:45.9]} 23...
Qh5 {[%clk 0:01:44]} 24. Rg3 {[%clk 0:02:44.7]} 24... Rac8 {[%clk 0:01:42.2]}
25. h4 {[%clk 0:02:42.2]} 25... Rc4 {[%clk 0:01:38.1]} 26. Bd2 {[%clk
0:02:30.4]} 26... Rc2 {[%clk 0:01:27.2]} 27. Bf3 {[%clk 0:02:30.1]} 27... Qh6
{[%clk 0:01:18.4]} 28. Be3 {[%clk 0:02:26.7]} 28... Rfc8 {[%clk 0:01:15.7]} 29.
f5 {[%clk 0:02:26.1]} 29... g5 {[%clk 0:01:08.4]} 30. Kg2 {[%clk 0:02:18.5]}
30... Bxf5 {[%clk 0:00:38.1]} 31. hxg5 {[%clk 0:02:17.3]} 31... Qf8 {[%clk
0:00:37.3]} 32. gxf6+ {[%clk 0:02:15.4]} 32... Bg6 {[%clk 0:00:37.5]} 33. Be4
{[%clk 0:02:11.1]} 33... Qxf6 {[%clk 0:00:28.8]} 34. Bxc2 {[%clk 0:02:09.1]}
34... Qxf2+ {[%clk 0:00:26.2]} 35. Kxf2 {[%clk 0:02:08.2]} 35... Rxc2 {[%clk
0:00:27.1]} 36. a4 {[%clk 0:02:07.1]} 36... Kf7 {[%clk 0:00:23.1]} 37. Rh4
{[%clk 0:02:06.3]} 37... Ke8 {[%clk 0:00:21.7]} 38. Rd4 {[%clk 0:01:59.5]} 38...
Kd7 {[%clk 0:00:21.7]} 39. Bg5 {[%clk 0:01:58.6]} 39... Bh5 {[%clk 0:00:20.8]}
40. Re3 {[%clk 0:01:58.2]} 1-0

[Event "Late-Titled-Tuesday-Blitz-February-27-2024"]
[Site "Chess.com"]
[Date "2024.02.27"]
[Round "3"]
[White "shirovin"]
[Black "maurovargas01"]
[Result "1-0"]
[WhiteElo "2070"]
[BlackElo "1847"]
[TimeControl "180+1"]
[EndTime "14:27:04 PST"]
[Termination "shirovin won on time"]

1. e4 {[%clk 0:03:00.9]} 1... c5 {[%clk 0:02:59.2]} 2. d4 {[%clk 0:03:01.5]}
2... cxd4 {[%clk 0:03:00.1]} 3. c3 {[%clk 0:03:00.8]} 3... dxc3 {[%clk
0:02:59.8]} 4. Nxc3 {[%clk 0:03:01.4]} 4... Nc6 {[%clk 0:02:59.1]} 5. Nf3 {[%clk
0:03:02]} 5... g6 {[%clk 0:02:59.1]} 6. Bc4 {[%clk 0:03:02.4]} 6... Bg7 {[%clk
0:02:59]} 7. O-O {[%clk 0:02:51.6]} 7... Nf6 {[%clk 0:02:58.5]} 8. Qe2 {[%clk
0:02:49.7]} 8... O-O {[%clk 0:02:56.7]} 9. Bg5 {[%clk 0:02:41.4]} 9... d6 {[%clk
0:02:56.1]} 10. Rfd1 {[%clk 0:02:39.3]} 10... Bg4 {[%clk 0:02:54.1]} 11. h3
{[%clk 0:02:10.2]} 11... Bxf3 {[%clk 0:02:55]} 12. Qxf3 {[%clk 0:02:09.4]} 12...
Ne5 {[%clk 0:02:55.9]} 13. Qe2 {[%clk 0:02:08.9]} 13... Nxc4 {[%clk 0:02:56.8]}
14. Qxc4 {[%clk 0:02:08.6]} 14... Rc8 {[%clk 0:02:56.9]} 15. Qe2 {[%clk
0:02:07.8]} 15... Qb6 {[%clk 0:02:52.1]} 16. Bxf6 {[%clk 0:02:03.5]} 16... Bxf6
{[%clk 0:02:51.8]} 17. Nd5 {[%clk 0:02:03.1]} 17... Qxb2 {[%clk 0:02:49.8]} 18.
Qf3 {[%clk 0:01:54.2]} 18... Qxa1 {[%clk 0:02:43]} 19. Rxa1 {[%clk 0:01:52]}
19... Bxa1 {[%clk 0:02:43]} 20. Nxe7+ {[%clk 0:01:51.6]} 20... Kh8 {[%clk
0:02:39.7]} 21. Nxc8 {[%clk 0:01:52.1]} 21... Rxc8 {[%clk 0:02:38.5]} 22. Qxf7
{[%clk 0:01:45.9]} 22... Be5 {[%clk 0:02:37]} 23. g3 {[%clk 0:01:39.3]} 23...
Rc1+ {[%clk 0:02:34.9]} 24. Kg2 {[%clk 0:01:39]} 1-0

[Event "Late-Titled-Tuesday-Blitz-February-27-2024"]
[Site "Chess.com"]
[Date "2024.02.27"]
[Round "3"]
[White "Nouali_Mohamed"]
[Black "Zampronha1971"]
[Result "1-0"]
[WhiteElo "2524"]
[BlackElo "2341"]
[TimeControl "180+1"]
[EndTime "14:27:05 PST"]
[Termination "Nouali_Mohamed won on time"]

1. e4 {[%clk 0:03:00]} 1... c5 {[%clk 0:02:56.5]} 2. Nf3 {[%clk 0:02:59.2]} 2...
e6 {[%clk 0:02:57.1]} 3. d4 {[%clk 0:02:59.4]} 3... cxd4 {[%clk 0:02:58]} 4.
Nxd4 {[%clk 0:03:00.3]} 4... Nc6 {[%clk 0:02:58.6]} 5. Nc3 {[%clk 0:03:00.7]}
5... Qc7 {[%clk 0:02:59.2]} 6. Be3 {[%clk 0:03:00.3]} 6... a6 {[%clk 0:02:59]}
7. Qf3 {[%clk 0:03:00.8]} 7... Nf6 {[%clk 0:02:51.7]} 8. O-O-O {[%clk 0:03:00]}
8... b5 {[%clk 0:02:08.3]} 9. e5 {[%clk 0:02:58.5]} 9... Ng8 {[%clk 0:01:52]}
10. Nxc6 {[%clk 0:02:49.4]} 10... Qxc6 {[%clk 0:01:49.9]} 11. Qxc6 {[%clk
0:02:42.8]} 11... dxc6 {[%clk 0:01:48.9]} 12. Ne4 {[%clk 0:02:42.8]} 12... f5
{[%clk 0:01:42.2]} 13. Nd6+ {[%clk 0:02:27.5]} 13... Bxd6 {[%clk 0:01:41.6]} 14.
Rxd6 {[%clk 0:02:28]} 14... Ne7 {[%clk 0:01:34.7]} 15. Bc5 {[%clk 0:02:07.1]}
15... Bd7 {[%clk 0:01:34.2]} 16. Be2 {[%clk 0:01:56.9]} 16... Nc8 {[%clk
0:01:03.7]} 17. Rd4 {[%clk 0:01:46.9]} 17... Ne7 {[%clk 0:01:04.2]} 18. b3
{[%clk 0:01:39.9]} 18... Nd5 {[%clk 0:00:51.3]} 19. c4 {[%clk 0:01:32.1]} 19...
bxc4 {[%clk 0:00:50.2]} 20. bxc4 {[%clk 0:01:33]} 20... Ne7 {[%clk 0:00:45.9]}
21. Rhd1 {[%clk 0:01:30.7]} 1-0

[Event "Late-Titled-Tuesday-Blitz-February-27-2024"]
[Site "Chess.com"]
[Date "2024.02.27"]
[Round "3"]
[White "VinzentSpitzl"]
[Black "AlexeiShirov"]
[Result "1-0"]
[WhiteElo "2524"]
[BlackElo "2845"]
[TimeControl "180+1"]
[EndTime "14:27:14 PST"]
[Termination "VinzentSpitzl won by resignation"]

1. e4 {[%clk 0:03:00.9]} 1... e5 {[%clk 0:02:59.2]} 2. Nf3 {[%clk 0:03:00.9]}
2... Nc6 {[%clk 0:02:59.2]} 3. Bb5 {[%clk 0:03:00.8]} 3... a6 {[%clk 0:02:59.4]}
4. Ba4 {[%clk 0:03:01]} 4... Nf6 {[%clk 0:02:59.5]} 5. O-O {[%clk 0:03:00.8]}
5... b5 {[%clk 0:03:00.4]} 6. Bb3 {[%clk 0:03:00.6]} 6... Bc5 {[%clk 0:03:00.9]}
7. c3 {[%clk 0:03:00.1]} 7... d6 {[%clk 0:03:00.2]} 8. a4 {[%clk 0:02:59.1]}
8... Rb8 {[%clk 0:02:59.5]} 9. d4 {[%clk 0:02:58]} 9... Bb6 {[%clk 0:02:59.6]}
10. a5 {[%clk 0:02:58.2]} 10... Ba7 {[%clk 0:02:58.8]} 11. Be3 {[%clk
0:02:49.2]} 11... Bg4 {[%clk 0:02:57.2]} 12. d5 {[%clk 0:02:17.9]} 12... Bxe3
{[%clk 0:02:54.9]} 13. fxe3 {[%clk 0:02:08.4]} 13... Ne7 {[%clk 0:02:54.4]} 14.
Nbd2 {[%clk 0:02:07.8]} 14... Ng6 {[%clk 0:02:48.6]} 15. Qe1 {[%clk 0:02:06.8]}
15... b4 {[%clk 0:02:42.8]} 16. c4 {[%clk 0:02:02.1]} 16... O-O {[%clk
0:02:39.9]} 17. h3 {[%clk 0:01:52.9]} 17... Bxf3 {[%clk 0:02:39.2]} 18. gxf3
{[%clk 0:01:49.2]} 18... Nh5 {[%clk 0:02:36.5]} 19. Qf2 {[%clk 0:01:44.8]} 19...
f5 {[%clk 0:02:30.3]} 20. exf5 {[%clk 0:01:41.2]} 20... Rxf5 {[%clk 0:02:29.4]}
21. Bc2 {[%clk 0:01:40.7]} 21... Rg5+ {[%clk 0:02:29.1]} 22. Kh2 {[%clk
0:01:40.8]} 22... Ngf4 {[%clk 0:02:15.4]} 23. Rg1 {[%clk 0:01:32.5]} 23... Nxh3
{[%clk 0:01:50.1]} 24. Kxh3 {[%clk 0:01:23.7]} 24... Qd7+ {[%clk 0:01:49]} 25.
Kh2 {[%clk 0:00:58.7]} 25... Nf4 {[%clk 0:01:46.8]} 26. Rg4 {[%clk 0:00:58.6]}
26... Rxg4 {[%clk 0:01:26.4]} 27. fxg4 {[%clk 0:00:57.9]} 27... b3 {[%clk
0:01:21.3]} 28. Bf5 {[%clk 0:00:53.7]} 28... Qe7 {[%clk 0:01:16]} 29. exf4
{[%clk 0:00:53.1]} 29... exf4 {[%clk 0:01:16.2]} 30. Re1 {[%clk 0:00:40.5]}
30... Qf6 {[%clk 0:01:16.6]} 31. Nf3 {[%clk 0:00:38.6]} 31... g6 {[%clk
0:01:14.8]} 32. Be6+ {[%clk 0:00:38.8]} 32... Kg7 {[%clk 0:01:13.6]} 33. g5
{[%clk 0:00:38.2]} 1-0

[Event "Late-Titled-Tuesday-Blitz-February-27-2024"]
[Site "Chess.com"]
[Date "2024.02.27"]
[Round "3"]
[White "stollenmonster"]
[Black "JackRodgers"]
[Result "1-0"]
[WhiteElo "2863"]
[BlackElo "2511"]
[TimeControl "180+1"]
[EndTime "14:27:17 PST"]
[Termination "stollenmonster won on time"]

1. e4 {[%clk 0:03:00.9]} 1... c5 {[%clk 0:02:59.6]} 2. Nf3 {[%clk 0:03:00.8]}
2... g6 {[%clk 0:02:59.7]} 3. d4 {[%clk 0:03:00.6]} 3... cxd4 {[%clk 0:03:00.6]}
4. Nxd4 {[%clk 0:03:01.5]} 4... Bg7 {[%clk 0:03:00.7]} 5. Nc3 {[%clk 0:03:02.2]}
5... Nc6 {[%clk 0:03:01.4]} 6. Nde2 {[%clk 0:03:02.8]} 6... Nf6 {[%clk
0:03:00.6]} 7. g3 {[%clk 0:03:03.4]} 7... O-O {[%clk 0:03:00.1]} 8. Bg2 {[%clk
0:03:04]} 8... d6 {[%clk 0:02:54.4]} 9. h3 {[%clk 0:03:04.4]} 9... Bd7 {[%clk
0:02:52.8]} 10. a4 {[%clk 0:03:04.8]} 10... Rc8 {[%clk 0:02:51.7]} 11. O-O
{[%clk 0:03:03.7]} 11... a6 {[%clk 0:02:44.9]} 12. Nd5 {[%clk 0:03:01]} 12...
Nxd5 {[%clk 0:02:17.6]} 13. exd5 {[%clk 0:03:01.9]} 13... Ne5 {[%clk 0:02:18.2]}
14. Ra2 {[%clk 0:03:01.2]} 14... Bf5 {[%clk 0:02:14.6]} 15. b3 {[%clk
0:03:01.3]} 15... h5 {[%clk 0:02:11.3]} 16. a5 {[%clk 0:02:56.8]} 16... Rc5
{[%clk 0:01:40.6]} 17. Bd2 {[%clk 0:02:50.3]} 17... Bc8 {[%clk 0:01:35.7]} 18.
c4 {[%clk 0:02:48.6]} 18... Rc7 {[%clk 0:01:19.5]} 19. Be3 {[%clk 0:02:48]}
19... Nd7 {[%clk 0:01:15.2]} 20. Re1 {[%clk 0:02:43.5]} 20... Re8 {[%clk
0:01:12.3]} 21. Nf4 {[%clk 0:02:32]} 21... Nc5 {[%clk 0:01:11.4]} 22. b4 {[%clk
0:02:27.3]} 22... Nd7 {[%clk 0:01:11.3]} 23. Rc2 {[%clk 0:02:23.9]} 23... Rf8
{[%clk 0:01:05.7]} 24. Qe2 {[%clk 0:02:11.7]} 24... Qe8 {[%clk 0:01:03.6]} 25.
c5 {[%clk 0:02:06.7]} 25... Nf6 {[%clk 0:00:51.6]} 26. c6 {[%clk 0:01:59.4]}
26... Bf5 {[%clk 0:00:40.9]} 27. Rcc1 {[%clk 0:01:59.5]} 27... bxc6 {[%clk
0:00:33.8]} 28. dxc6 {[%clk 0:02:00.4]} 28... Qa8 {[%clk 0:00:08.5]} 29. Bb6
{[%clk 0:01:59.6]} 29... Rfc8 {[%clk 0:00:06.1]} 30. Bxc7 {[%clk 0:01:57.9]}
30... Rxc7 {[%clk 0:00:07]} 31. b5 {[%clk 0:01:55.6]} 31... axb5 {[%clk
0:00:06.7]} 32. Qxb5 {[%clk 0:01:56.4]} 32... e5 {[%clk 0:00:02.2]} 33. Nd5
{[%clk 0:01:56.2]} 33... Nxd5 {[%clk 0:00:02.7]} 34. Bxd5 {[%clk 0:01:56.9]}
34... Kh7 {[%clk 0:00:02.8]} 35. Qb6 {[%clk 0:01:56.9]} 35... Qc8 {[%clk
0:00:02.2]} 36. a6 {[%clk 0:01:56.9]} 36... Bxh3 {[%clk 0:00:02]} 37. a7 {[%clk
0:01:57.6]} 37... f5 {[%clk 0:00:01.3]} 38. Qb8 {[%clk 0:01:57.1]} 1-0

[Event "Late-Titled-Tuesday-Blitz-February-27-2024"]
[Site "Chess.com"]
[Date "2024.02.27"]
[Round "3"]
[White "arenal72"]
[Black "TenisMaster"]
[Result "0-1"]
[WhiteElo "2616"]
[BlackElo "2938"]
[TimeControl "180+1"]
[EndTime "14:27:18 PST"]
[Termination "TenisMaster won by resignation"]

1. Nf3 {[%clk 0:03:00.9]} 1... d5 {[%clk 0:02:59.2]} 2. g3 {[%clk 0:03:01.2]}
2... Bg4 {[%clk 0:02:58.3]} 3. Bg2 {[%clk 0:03:00.4]} 3... c6 {[%clk 0:02:57.9]}
4. O-O {[%clk 0:03:00]} 4... e6 {[%clk 0:02:57.2]} 5. d3 {[%clk 0:02:58.9]} 5...
Bd6 {[%clk 0:02:57.2]} 6. c4 {[%clk 0:02:57.4]} 6... Ne7 {[%clk 0:02:56.7]} 7.
Nc3 {[%clk 0:02:56]} 7... Nd7 {[%clk 0:02:55.4]} 8. h3 {[%clk 0:02:56.2]} 8...
Bh5 {[%clk 0:02:55.1]} 9. Be3 {[%clk 0:02:54.1]} 9... O-O {[%clk 0:02:52.1]} 10.
Qb3 {[%clk 0:02:50.3]} 10... Qb8 {[%clk 0:02:49.9]} 11. Rac1 {[%clk 0:02:46]}
11... Re8 {[%clk 0:02:42.8]} 12. Bd2 {[%clk 0:02:19.9]} 12... a6 {[%clk
0:02:38]} 13. e4 {[%clk 0:02:18.5]} 13... dxc4 {[%clk 0:02:09.6]} 14. dxc4
{[%clk 0:02:14.6]} 14... Nc5 {[%clk 0:01:56.2]} 15. Qc2 {[%clk 0:02:13.2]} 15...
e5 {[%clk 0:01:56.4]} 16. b4 {[%clk 0:02:07.9]} 16... Ne6 {[%clk 0:01:56.5]} 17.
c5 {[%clk 0:02:07.7]} 17... Bc7 {[%clk 0:01:44.7]} 18. Be3 {[%clk 0:02:04.4]}
18... Rd8 {[%clk 0:01:41.2]} 19. g4 {[%clk 0:01:56.8]} 19... Bg6 {[%clk
0:01:40.3]} 20. Rfd1 {[%clk 0:01:54]} 20... h5 {[%clk 0:01:37.7]} 21. g5 {[%clk
0:01:46.1]} 21... Nf4 {[%clk 0:01:30.9]} 22. Bxf4 {[%clk 0:01:32.1]} 22... exf4
{[%clk 0:01:31.8]} 23. Qb3 {[%clk 0:01:27.4]} 23... Bh7 {[%clk 0:01:19.7]} 24.
Bf1 {[%clk 0:01:24.6]} 24... Rxd1 {[%clk 0:01:15.2]} 25. Rxd1 {[%clk 0:01:22.9]}
25... Qe8 {[%clk 0:01:15.9]} 26. Bc4 {[%clk 0:01:18.4]} 26... Ng6 {[%clk
0:01:16]} 27. Qc2 {[%clk 0:01:03.3]} 27... Ne5 {[%clk 0:01:12.9]} 28. Qe2 {[%clk
0:00:58.9]} 28... Rd8 {[%clk 0:01:08.1]} 29. Bb3 {[%clk 0:00:51.5]} 29... Nxf3+
{[%clk 0:01:03.6]} 30. Qxf3 {[%clk 0:00:50.3]} 30... Bg6 {[%clk 0:01:04.5]} 31.
h4 {[%clk 0:00:43.3]} 31... Rd7 {[%clk 0:01:04.7]} 32. Rxd7 {[%clk 0:00:40.8]}
32... Qxd7 {[%clk 0:01:05.6]} 33. Qd1 {[%clk 0:00:40.7]} 33... Qh3 {[%clk
0:01:05.1]} 34. Qd7 {[%clk 0:00:35.8]} 34... Qxd7 {[%clk 0:01:04.5]} 0-1

[Event "Late-Titled-Tuesday-Blitz-February-27-2024"]
[Site "Chess.com"]
[Date "2024.02.27"]
[Round "3"]
[White "KNVB"]
[Black "AjedrezenMadrid"]
[Result "0-1"]
[WhiteElo "2821"]
[BlackElo "2518"]
[TimeControl "180+1"]
[EndTime "14:27:22 PST"]
[Termination "AjedrezenMadrid won by checkmate"]

1. e4 {[%clk 0:03:00.9]} 1... c6 {[%clk 0:02:58.1]} 2. Nf3 {[%clk 0:02:56.5]}
2... d5 {[%clk 0:02:50.7]} 3. d3 {[%clk 0:02:56.9]} 3... dxe4 {[%clk 0:02:50.4]}
4. dxe4 {[%clk 0:02:57.8]} 4... Qxd1+ {[%clk 0:02:50]} 5. Kxd1 {[%clk
0:02:58.7]} 5... Nf6 {[%clk 0:02:49]} 6. Nfd2 {[%clk 0:02:57.4]} 6... g5 {[%clk
0:02:48]} 7. Bd3 {[%clk 0:02:41.3]} 7... Nbd7 {[%clk 0:02:47.3]} 8. Nc4 {[%clk
0:02:36.7]} 8... g4 {[%clk 0:02:45.3]} 9. Be3 {[%clk 0:02:32]} 9... h5 {[%clk
0:02:45.1]} 10. a4 {[%clk 0:02:19.3]} 10... Bh6 {[%clk 0:02:44.9]} 11. Ke2
{[%clk 0:02:19.8]} 11... Bxe3 {[%clk 0:02:44.6]} 12. Kxe3 {[%clk 0:02:20.7]}
12... h4 {[%clk 0:02:35.9]} 13. a5 {[%clk 0:02:07.1]} 13... Rh5 {[%clk
0:02:35.6]} 14. b4 {[%clk 0:02:03.4]} 14... Ne5 {[%clk 0:02:30.4]} 15. Nxe5
{[%clk 0:01:38]} 15... Rxe5 {[%clk 0:02:31.3]} 16. Nd2 {[%clk 0:01:38.9]} 16...
Be6 {[%clk 0:02:30.8]} 17. f4 {[%clk 0:01:39.2]} 17... gxf3 {[%clk 0:02:30.5]}
18. Nxf3 {[%clk 0:01:38.5]} 18... Ng4+ {[%clk 0:02:25.3]} 19. Kf4 {[%clk
0:01:15.8]} 19... Rh5 {[%clk 0:02:24.9]} 20. h3 {[%clk 0:01:15.9]} 20... Nf6
{[%clk 0:02:23.6]} 21. Rhd1 {[%clk 0:00:54.1]} 21... O-O-O {[%clk 0:02:22.9]}
22. Bf1 {[%clk 0:00:33.2]} 22... Rg8 {[%clk 0:02:16.2]} 23. Nd4 {[%clk 0:00:10]}
23... Nd7 {[%clk 0:02:00.5]} 24. a6 {[%clk 0:00:06.7]} 24... Ne5 {[%clk
0:01:56.5]} 25. axb7+ {[%clk 0:00:06.2]} 25... Kxb7 {[%clk 0:01:56.8]} 26. Ba6+
{[%clk 0:00:04.2]} 26... Kb8 {[%clk 0:01:47]} 27. Ra5 {[%clk 0:00:02.3]} 27...
Ng6+ {[%clk 0:01:45.2]} 28. Ke3 {[%clk 0:00:02.7]} 28... Rxa5 {[%clk 0:01:43.4]}
29. Nxc6+ {[%clk 0:00:03]} 29... Kc7 {[%clk 0:01:43.5]} 30. Nxa5 {[%clk
0:00:03.7]} 30... Ne5 {[%clk 0:01:38.8]} 31. Kf4 {[%clk 0:00:01.8]} 31... f6
{[%clk 0:01:37.5]} 32. Bf1 {[%clk 0:00:01.7]} 32... Rg3 {[%clk 0:01:36.8]} 33.
c4 {[%clk 0:00:01.6]} 33... Ng6# {[%clk 0:01:37.3]} 0-1

[Event "Late-Titled-Tuesday-Blitz-February-27-2024"]
[Site "Chess.com"]
[Date "2024.02.27"]
[Round "3"]
[White "MusicCityMaster"]
[Black "SEBAZZANO"]
[Result "1-0"]
[WhiteElo "2562"]
[BlackElo "2313"]
[TimeControl "180+1"]
[EndTime "14:27:22 PST"]
[Termination "MusicCityMaster won on time"]

1. e4 {[%clk 0:03:00.9]} 1... e6 {[%clk 0:02:54.9]} 2. d4 {[%clk 0:03:00.2]}
2... d5 {[%clk 0:02:52.2]} 3. Nc3 {[%clk 0:03:01.1]} 3... dxe4 {[%clk
0:02:51.2]} 4. Nxe4 {[%clk 0:03:02]} 4... Bd7 {[%clk 0:02:48.3]} 5. Nf3 {[%clk
0:03:01.2]} 5... Bc6 {[%clk 0:02:48.3]} 6. Bd3 {[%clk 0:03:01.5]} 6... Bxe4
{[%clk 0:02:48.6]} 7. Bxe4 {[%clk 0:03:01.9]} 7... c6 {[%clk 0:02:49.1]} 8. c3
{[%clk 0:03:01.7]} 8... Nf6 {[%clk 0:02:49.7]} 9. Bc2 {[%clk 0:03:02]} 9... Bd6
{[%clk 0:02:50.3]} 10. O-O {[%clk 0:03:02]} 10... Nbd7 {[%clk 0:02:50.8]} 11.
Re1 {[%clk 0:03:01]} 11... O-O {[%clk 0:02:51]} 12. Bg5 {[%clk 0:03:00.1]} 12...
Qc7 {[%clk 0:02:51.4]} 13. h3 {[%clk 0:02:58.9]} 13... Bf4 {[%clk 0:02:50.6]}
14. Qd3 {[%clk 0:02:51.7]} 14... Bxg5 {[%clk 0:02:44.1]} 15. Nxg5 {[%clk
0:02:51.8]} 15... g6 {[%clk 0:02:44.5]} 16. Re3 {[%clk 0:02:40.6]} 16... c5
{[%clk 0:02:24.1]} 17. Rae1 {[%clk 0:02:39.6]} 17... cxd4 {[%clk 0:02:23.1]} 18.
Qxd4 {[%clk 0:02:39.7]} 18... a6 {[%clk 0:02:16.5]} 19. Qh4 {[%clk 0:02:38.1]}
19... Rfd8 {[%clk 0:01:56.4]} 20. Rf3 {[%clk 0:02:30.4]} 20... Rf8 {[%clk
0:01:21.2]} 21. Bb3 {[%clk 0:02:26.5]} 21... Rae8 {[%clk 0:01:07.1]} 22. Qh6
{[%clk 0:02:03.3]} 22... Qd6 {[%clk 0:00:43.4]} 23. h4 {[%clk 0:01:53.8]} 23...
e5 {[%clk 0:00:19.4]} 24. h5 {[%clk 0:01:50.8]} 24... e4 {[%clk 0:00:18.6]} 25.
Rh3 {[%clk 0:01:40.8]} 25... Qd2 {[%clk 0:00:11.3]} 26. Rd1 {[%clk 0:01:37.2]}
26... Qf4 {[%clk 0:00:10.1]} 27. hxg6 {[%clk 0:01:35.3]} 27... e3 {[%clk
0:00:07.9]} 28. gxf7+ {[%clk 0:01:27]} 28... Kh8 {[%clk 0:00:04.7]} 29. Qxh7+
{[%clk 0:01:26.4]} 1-0